[Event "FIDE World Rapid-ch Open 2018"]
[White "Gelfand, Boris"]
[Black "Novikov, Stanislav"]
[Site "St. Petersburg"]
[Round "5.18"]
[Annotator "RC"]
[Result "1-0"]
[Date "2018.12.26"]
[WhiteElo "2673"]
[BlackElo "2540"]
[PlyCount "83"]
[TimeControl "900+10"]

1. d4 {[%emt 0:0:0]} g6 {[%emt 0:0:0]} 2. e4 {[%emt 0:0:2]} Bg7 {[%emt 0:0:0]} 3. Nf3 {[%emt 0:0:10]} c6 {[%emt 0:0:0]} 4. c4 {[%emt 0:0:53]} d6 {[%emt 0:0:6]
} 5. Be2 {[%emt 0:0:31]} Bg4 {[%emt 0:0:7]} 6. 0-0 {[%emt 0:0:0]} Qb6 {[%emt 0:0:18]} 7. Nbd2 {[%emt 0:0:51]} Nf6 {[%emt 0:1:44]} 8. Qc2 {[%emt 0:1:24]} Nfd7 {[%emt 0:0:16]} 9. Rd1 {[%emt 0:0:46]} 0-0 {[%emt 0:0:49]
} 10. h3 {[%emt 0:0:8]} Bxf3 {[%emt 0:0:3]} 11. Nxf3 {[%emt 0:0:1]
} c5 {[%emt 0:1:26]} 12. d5 {[%emt 0:0:6]} Na6 {[%emt 0:1:5]
} 13. Bf4 {[%emt 0:0:16]} Rab8 {[%emt 0:2:34]} 14. Rab1 {[%emt 0:1:15]} Nc7 {[%emt 0:0:9]} 15. a3 {[%emt 0:0:59]} a6 {[%emt 0:0:50]} 16. b4 {[%emt 0:0:0]} Qa7 {[%emt 0:0:8]} 17. Be3 {[%emt 0:0:58]} a5 {[%emt 0:3:8]} 18. bxc5 {[%emt 0:1:50]} Nxc5 {[%emt 0:0:1]} 19. Nd4 {[%emt 0:0:1]} Qa8 {[%emt 0:1:14]
} 20. f4 {[%emt 0:0:25]} N7a6 {[%emt 0:1:36]} 21. Nb5 {[%emt 0:0:0]} a4 {[%emt 0:0:19]} 22. Nd4 {[%emt 0:2:2]} Rbc8 {[%emt 0:0:48]} 23. Bg4 {[%emt 0:0:8]} Rcd8 {[%emt 0:0:7]} 24. Rb6 {[%emt 0:0:24]} h5 {[%emt 0:1:36]
} 25. Bf3 {[%emt 0:0:2]} Rc8 {[%emt 0:0:1]} 26. Rdb1 {[%emt 0:0:32]
} Rc7 {[%emt 0:0:24]} 27. Nb5 {[%emt 0:0:29]} Rcc8 {[%emt 0:0:0]} 28. Nc3 {[%emt 0:0:40]} Nb3 {[%emt 0:0:20]} 29. Nxa4 {[%emt 0:0:17]} Nd4 {[%emt 0:0:18]} 30. Qd3 {[%emt 0:0:20]} Nxf3+ {[%emt 0:0:15]} 31. gxf3 {[%emt 0:0:1]
} Rc7 {[%emt 0:0:3]} 32. f5 {[%emt 0:1:28]} Nb8 {[%emt 0:0:0]} 33. R6b4 {[%emt 0:0:4]} Nd7 {[%emt 0:0:4]} 34. Nb6 {[%emt 0:0:2]} Qd8 {[%emt 0:0:26]} 35. Nxd7 {[%emt 0:0:6]} Qxd7 {[%emt 0:0:1]} 36. Kh2 {[%emt 0:0:18]
} Kh7 {[%emt 0:0:3]} 37. Rg1 {[%emt 0:0:8]} gxf5 38. exf5 {[%emt 0:0:20]
} Bf6 {[%emt 0:0:33]} 39. c5 {[%emt 0:0:21]} dxc5 {[%emt 0:0:0]} 40. Rh4 {[%emt 0:0:4]} Bxh4 {[%emt 0:0:11]} 41. f6+ {[%emt 0:0:1]} Kh8 {[%emt 0:0:2]} 42. Rg7 {[%emt 0:0:0]} 1-0

[Event "FIDE World Rapid-ch Open 2018"]
[White "Alekseenko, Kirill"]
[Black "Anton Guijarro, David"]
[Site "St. Petersburg"]
[Round "5.19"]
[Annotator "RC"]
[Result "0-1"]
[Date "2018.12.26"]
[WhiteElo "2638"]
[BlackElo "2642"]
[PlyCount "106"]
[TimeControl "900+10"]

1. e4 {[%emt 0:0:0]} e5 {[%emt 0:0:0]} 2. Nf3 {[%emt 0:0:0]} Nc6 {[%emt 0:0:0]
} 3. Bb5 {[%emt 0:0:0]} a6 {[%emt 0:0:0]} 4. Ba4 {[%emt 0:0:0]} Nf6 {[%emt 0:0:2]} 5. 0-0 {[%emt 0:0:4]} Nxe4 {[%emt 0:0:4]} 6. d4 {[%emt 0:0:16]
} b5 {[%emt 0:0:4]} 7. Bb3 {[%emt 0:0:2]} d5 {[%emt 0:0:3]} 8. dxe5 {[%emt 0:0:3]} Be6 {[%emt 0:0:2]} 9. Be3 {[%emt 0:0:42]} Be7 {[%emt 0:0:18]
} 10. c3 {[%emt 0:0:4]} 0-0 {[%emt 0:0:31]} 11. Nbd2 {[%emt 0:0:0]} Nxd2 {[%emt 0:0:37]} 12. Qxd2 {[%emt 0:0:44]} Na5 {[%emt 0:0:7]} 13. Bc2 {[%emt 0:0:49]} Nc4 {[%emt 0:0:14]} 14. Qd3 {[%emt 0:0:10]} g6 {[%emt 0:0:3]
} 15. Bc1 {[%emt 0:1:26]} Qd7 {[%emt 0:4:20]} 16. Re1 {[%emt 0:0:0]} a5 {[%emt 0:0:48]} 17. Nd4 {[%emt 0:2:7]} a4 {[%emt 0:1:1]} 18. Qe2 {[%emt 0:1:54]} Bg4 {[%emt 0:3:19]} 19. f3 {[%emt 0:0:23]} Be6 {[%emt 0:0:0]} 20. Bd3 {[%emt 0:0:8]} c5 {[%emt 0:1:17]} 21. Nxe6 {[%emt 0:0:42]} fxe6 {[%emt 0:0:2]} 22. Rb1 {[%emt 0:0:59]} Rab8 {[%emt 0:0:47]} 23. g3 {[%emt 0:1:29]
} Na5 {[%emt 0:0:28]} 24. Kg2 {[%emt 0:0:10]} c4 {[%emt 0:0:0]} 25. Bc2 {[%emt 0:0:1]} b4 {[%emt 0:0:33]} 26. h4 {[%emt 0:0:43]} b3 {[%emt 0:0:17]
} 27. axb3 {[%emt 0:0:16]} axb3 {[%emt 0:0:2]} 28. Bd1 {[%emt 0:0:3]
} Nb7 {[%emt 0:0:59]} 29. Qf2 {[%emt 0:0:32]} Nc5 {[%emt 0:0:0]} 30. Be2 {[%emt 0:0:3]} Ra8 {[%emt 0:0:19]} 31. Be3 {[%emt 0:0:4]} Qc7 {[%emt 0:0:26]} 32. f4 {[%emt 0:1:32]} Ra2 {[%emt 0:0:38]} 33. Kh3 {[%emt 0:0:0]} Kh8 {[%emt 0:0:41]} 34. Bd4 {[%emt 0:0:21]} Ne4 {[%emt 0:0:17]} 35. Qe3 {[%emt 0:0:2]} Bc5 {[%emt 0:0:11]} 36. Bf3 {[%emt 0:0:22]} Bxd4 {[%emt 0:0:3]
} 37. cxd4 {[%emt 0:1:19]} Rd8 {[%emt 0:0:50]} 38. Rec1 {[%emt 0:0:35]
} Qc6 {[%emt 0:0:40]} 39. Bxe4 {[%emt 0:0:36]} dxe4 {[%emt 0:0:0]} 40. Qxb3 {[%emt 0:0:4]} Ra4 {[%emt 0:0:12]} 41. Qe3 {[%emt 0:0:17]} Qd5 {[%emt 0:0:3]} 42. Rd1 {[%emt 0:0:1]} Rb4 {[%emt 0:0:2]} 43. h5 {[%emt 0:0:47]
} Rb3 {[%emt 0:0:10]} 44. Qe2 {[%emt 0:0:0]} gxh5 {[%emt 0:0:0]} 45. Qxh5 {[%emt 0:0:32]} Rg8 {[%emt 0:0:2]} 46. Rg1 {[%emt 0:0:4]} e3 {[%emt 0:0:39]} 47. Ra1 {[%emt 0:0:26]} Rb7 {[%emt 0:0:24]} 48. Qh6 {[%emt 0:0:23]
} Rf7 {[%emt 0:0:19]} 49. Ra6 {[%emt 0:0:6]} Rg6 {[%emt 0:0:0]} 50. Qh4 {[%emt 0:0:27]} Kg7 {[%emt 0:0:1]} 51. Rd6 {[%emt 0:0:7]} Qf3 {[%emt 0:0:11]} 52. Rd8 {[%emt 0:0:5]} e2 {[%emt 0:0:14]} 53. Kh2 {[%emt 0:0:0]} Qf2+ {[%emt 0:0:7]} 0-1

[Event "FIDE World Rapid-ch Open 2018"]
[White "Akopian, Vladimir"]
[Black "Khanin, Semen"]
[Site "St. Petersburg"]
[Round "5.20"]
[Annotator "RC"]
[Result "1/2-1/2"]
[Date "2018.12.26"]
[WhiteElo "2650"]
[BlackElo "2514"]
[PlyCount "85"]
[TimeControl "900+10"]

1. Nf3 {[%emt 0:0:0]} Nf6 {[%emt 0:0:0]} 2. g3 {[%emt 0:0:2]} g6 {[%emt 0:0:0]
} 3. b3 {[%emt 0:0:35]} Bg7 {[%emt 0:0:0]} 4. Bb2 {[%emt 0:0:0]} 0-0 {[%emt 0:0:1]} 5. Bg2 {[%emt 0:0:4]} d6 {[%emt 0:0:3]} 6. c4 {[%emt 0:0:13]
} e5 {[%emt 0:0:7]} 7. 0-0 {[%emt 0:0:8]} Re8 {[%emt 0:0:11]
} 8. d3 {[%emt 0:0:11]} Nc6 {[%emt 0:0:24]} 9. Nbd2 {[%emt 0:0:15]} a5 {[%emt 0:0:34]
} 10. a3 {[%emt 0:0:8]} Bd7 {[%emt 0:1:34]} 11. e3 {[%emt 0:0:0]} Qc8 {[%emt 0:0:21]} 12. d4 {[%emt 0:0:26]} exd4 {[%emt 0:0:14]} 13. Nxd4 {[%emt 0:0:49]} Bh3 {[%emt 0:0:17]} 14. Nxc6 {[%emt 0:0:37]} Bxg2 {[%emt 0:0:8]
} 15. Kxg2 {[%emt 0:0:41]} bxc6 {[%emt 0:0:3]} 16. Qf3 {[%emt 0:0:8]
} Ne4 {[%emt 0:1:10]} 17. Nxe4 {[%emt 0:0:7]} Bxb2 {[%emt 0:0:0]} 18. Rab1 {[%emt 0:0:5]} Bg7 {[%emt 0:0:4]} 19. Ng5 {[%emt 0:1:34]} Qd7 {[%emt 0:0:8]} 20. b4 {[%emt 0:0:3]} axb4 {[%emt 0:0:13]} 21. axb4 {[%emt 0:0:1]
} h6 {[%emt 0:0:27]} 22. Nh3 {[%emt 0:0:18]} g5 {[%emt 0:0:50]
} 23. Ng1 {[%emt 0:0:18]} Ra2 {[%emt 0:0:46]} 24. h3 {[%emt 0:1:54]} Re5 {[%emt 0:1:59]
} 25. g4 {[%emt 0:0:43]} f5 {[%emt 0:1:22]} 26. Ne2 {[%emt 0:0:0]} fxg4 {[%emt 0:0:7]} 27. hxg4 {[%emt 0:0:2]} h5 {[%emt 0:0:3]} 28. Nd4 {[%emt 0:0:15]} hxg4 {[%emt 0:0:20]} 29. Qxc6 {[%emt 0:0:7]} Qxc6+ {[%emt 0:1:6]
} 30. Nxc6 {[%emt 0:0:2]} Rxe3 {[%emt 0:0:3]} 31. Rbe1 {[%emt 0:0:12]
} Rf3 {[%emt 0:0:57]} 32. Re8+ {[%emt 0:0:51]} Rf8 {[%emt 0:0:0]} 33. Rxf8+ {[%emt 0:0:26]} Kxf8 {[%emt 0:0:11]} 34. Re1 {[%emt 0:0:7]} Bf6 {[%emt 0:0:48]} 35. Re4 {[%emt 0:0:42]} Kf7 {[%emt 0:0:11]} 36. Rxg4 {[%emt 0:0:16]
} Kg6 {[%emt 0:1:2]} 37. Kg3 {[%emt 0:1:26]} Kf5 {[%emt 0:0:0]} 38. Nd4+ {[%emt 0:0:18]} Bxd4 {[%emt 0:0:27]} 39. Rxd4 {[%emt 0:0:1]} Rc2 {[%emt 0:0:18]} 40. b5 {[%emt 0:0:20]} Ke5 {[%emt 0:0:11]} 41. Rd5+ {[%emt 0:0:11]
} Kf6 {[%emt 0:0:23]} 42. Rd4 {[%emt 0:0:27]} Ke5 {[%emt 0:0:0]} 43. Rd5+ {[%emt 0:0:31]} 1/2-1/2

[Event "FIDE World Rapid-ch Open 2018"]
[White "Roiz, Michael"]
[Black "Motylev, Alexander"]
[Site "St. Petersburg"]
[Round "5.21"]
[Annotator "RC"]
[Result "1/2-1/2"]
[Date "2018.12.26"]
[WhiteElo "2605"]
[BlackElo "2644"]
[PlyCount "39"]
[TimeControl "900+10"]

1. Nf3 {[%emt 0:0:0]} d5 {[%emt 0:0:0]} 2. d4 {[%emt 0:0:0]} Nf6 {[%emt 0:0:0]
} 3. c4 {[%emt 0:0:0]} c6 {[%emt 0:0:0]} 4. Qb3 {[%emt 0:0:0]} a6 {[%emt 0:0:16]} 5. Bg5 {[%emt 0:1:28]} dxc4 {[%emt 0:0:41]} 6. Qxc4 {[%emt 0:0:1]} Ne4 {[%emt 0:1:27]} 7. Bf4 {[%emt 0:1:29]} Qa5+ {[%emt 0:0:0]} 8. Nbd2 {[%emt 0:0:56]} Nd7 {[%emt 0:1:9]} 9. Qc2 {[%emt 0:3:40]} Ndf6 {[%emt 0:0:59]} 10. e3 {[%emt 0:0:4]} Bg4 {[%emt 0:2:42]} 11. Bd3 {[%emt 0:0:0]} Bxf3 {[%emt 0:2:48]} 12. gxf3 {[%emt 0:0:1]} Nxd2 {[%emt 0:0:30]} 13. Qxd2 {[%emt 0:0:1]} Qxd2+ {[%emt 0:1:1]} 14. Kxd2 {[%emt 0:0:1]} e6 {[%emt 0:0:17]
} 15. Ke2 {[%emt 0:0:51]} Nh5 {[%emt 0:0:41]} 16. Be5 {[%emt 0:0:0]} Kd7 {[%emt 0:0:26]} 17. Rag1 {[%emt 0:1:55]} f6 {[%emt 0:0:23]} 18. Bg3 {[%emt 0:0:1]} Be7 {[%emt 0:0:10]} 19. h4 {[%emt 0:0:23]} g6 {[%emt 0:0:0]} 20. Bh2 {[%emt 0:0:15]} 1/2-1/2

[Event "FIDE World Rapid-ch Open 2018"]
[White "Bosiocic, Marin"]
[Black "Matlakov, Maxim"]
[Site "St. Petersburg"]
[Round "5.22"]
[Annotator "RC"]
[Result "1-0"]
[Date "2018.12.26"]
[WhiteElo "2599"]
[BlackElo "2700"]
[PlyCount "79"]
[TimeControl "900+10"]

1. e4 {[%emt 0:0:0]} e5 {[%emt 0:0:0]} 2. Nf3 {[%emt 0:0:0]} Nc6 {[%emt 0:0:0]
} 3. Bc4 {[%emt 0:0:0]} Nf6 {[%emt 0:0:0]} 4. Ng5 {[%emt 0:0:0]} d5 {[%emt 0:0:0]} 5. exd5 {[%emt 0:0:0]} Na5 {[%emt 0:0:0]} 6. Bb5+ {[%emt 0:0:1]} c6 {[%emt 0:0:0]} 7. dxc6 {[%emt 0:0:2]} bxc6 {[%emt 0:0:1]
} 8. Bd3 {[%emt 0:0:2]} Nd5 {[%emt 0:0:22]} 9. h4 {[%emt 0:0:0]} Be7 {[%emt 0:2:25]} 10. Qf3 {[%emt 0:0:39]} f5 {[%emt 0:0:28]} 11. Bxf5 {[%emt 0:0:40]} Rf8 {[%emt 0:0:2]} 12. Qh5+ {[%emt 0:1:34]} g6 {[%emt 0:0:0]} 13. Bxg6+ {[%emt 0:0:1]} hxg6 {[%emt 0:0:2]} 14. Qxg6+ {[%emt 0:0:2]
} Kd7 {[%emt 0:0:1]} 15. Qe6+ {[%emt 0:1:35]} Kc7 {[%emt 0:0:27]} 16. Qxe5+ {[%emt 0:0:2]} Kb7 {[%emt 0:2:55]} 17. Qg7 {[%emt 0:2:30]} Nf4 {[%emt 0:0:0]} 18. d3 {[%emt 0:1:54]} Nxg2+ {[%emt 0:0:18]} 19. Kf1 {[%emt 0:0:0]} Nf4 {[%emt 0:0:24]} 20. Bxf4 {[%emt 0:0:32]} Rxf4 {[%emt 0:0:4]} 21. Nc3 {[%emt 0:0:26]
} c5 {[%emt 0:2:23]} 22. Nce4 {[%emt 0:0:15]} Kb6 {[%emt 0:0:0]} 23. Qh6+ {[%emt 0:2:43]} Nc6 {[%emt 0:0:6]} 24. Ne6 {[%emt 0:0:3]} Bxe6 {[%emt 0:0:13]} 25. Qxf4 {[%emt 0:0:1]} Qd7 {[%emt 0:0:6]} 26. Qe3 {[%emt 0:1:10]
} Nd4 {[%emt 0:0:33]} 27. Rc1 {[%emt 0:0:44]} Rf8 {[%emt 0:0:0]} 28. b4 {[%emt 0:0:25]} Bg4 {[%emt 0:2:59]} 29. bxc5+ {[%emt 0:1:24]} Ka6 {[%emt 0:0:11]} 30. c3 {[%emt 0:1:12]} Nf5 {[%emt 0:0:37]} 31. Qf4 {[%emt 0:0:10]
} Qxd3+ {[%emt 0:0:3]} 32. Kg1 {[%emt 0:0:13]} Rg8 {[%emt 0:0:0]} 33. Ng5 {[%emt 0:0:25]} Bf3 {[%emt 0:1:0]} 34. Qa4+ {[%emt 0:0:13]} Kb7 {[%emt 0:0:2]} 35. Qb3+ {[%emt 0:0:1]} Kc7 {[%emt 0:0:12]} 36. Qxg8 {[%emt 0:0:6]
} Bxh1 {[%emt 0:0:1]} 37. Kxh1 {[%emt 0:0:20]} Nxh4 {[%emt 0:0:0]} 38. Ne6+ {[%emt 0:0:28]} Kd7 {[%emt 0:0:6]} 39. c6+ {[%emt 0:0:7]} Kd6 {[%emt 0:0:6]} 40. Qg3+ {[%emt 0:0:20]} 1-0

[Event "FIDE World Rapid-ch Open 2018"]
[White "Vallejo Pons, Francisco"]
[Black "Zhigalko, Sergei"]
[Site "St. Petersburg"]
[Round "5.25"]
[Annotator "RC"]
[Result "0-1"]
[Date "2018.12.26"]
[WhiteElo "2695"]
[BlackElo "2604"]
[PlyCount "78"]
[TimeControl "900+10"]

1. e4 {[%emt 0:0:0]} c5 {[%emt 0:0:0]} 2. Nf3 {[%emt 0:0:0]} Nc6 {[%emt 0:0:0]
} 3. Nc3 {[%emt 0:0:44]} Nf6 {[%emt 0:0:0]} 4. Bb5 {[%emt 0:0:0]} Qc7 {[%emt 0:0:0]} 5. 0-0 {[%emt 0:0:20]} Nd4 {[%emt 0:0:3]} 6. Ba4 {[%emt 0:0:13]} a6 {[%emt 0:4:9]} 7. Nxd4 {[%emt 0:0:58]} cxd4 {[%emt 0:0:2]
} 8. Nd5 {[%emt 0:0:3]} Nxd5 {[%emt 0:1:31]} 9. exd5 {[%emt 0:0:0]} b5 {[%emt 0:0:59]} 10. Bb3 {[%emt 0:0:5]} Bb7 {[%emt 0:0:1]} 11. Re1 {[%emt 0:2:52]} e6 {[%emt 0:0:34]} 12. d3 {[%emt 0:0:57]} Bd6 {[%emt 0:0:0]} 13. Qh5 {[%emt 0:2:41]} Qc5 {[%emt 0:2:4]} 14. c3 {[%emt 0:2:21]} g6 {[%emt 0:1:33]} 15. Qh4 {[%emt 0:1:6]} Be7 {[%emt 0:2:28]} 16. Qxd4 {[%emt 0:1:28]
} Qxd4 {[%emt 0:0:34]} 17. cxd4 {[%emt 0:0:1]} Bb4 {[%emt 0:0:0]} 18. Re4 {[%emt 0:0:34]} Bd6 {[%emt 0:1:29]} 19. dxe6 {[%emt 0:1:57]} dxe6 {[%emt 0:0:11]} 20. d5 {[%emt 0:0:1]} 0-0-0 {[%emt 0:0:16]} 21. Bf4 {[%emt 0:0:1]
} Bxd5 {[%emt 0:0:30]} 22. Bxd5 {[%emt 0:1:9]} exd5 {[%emt 0:0:0]} 23. Rd4 {[%emt 0:0:4]} Rhe8 {[%emt 0:0:17]} 24. Rc1+ {[%emt 0:0:39]
} Kb7 {[%emt 0:0:1]} 25. Bxd6 {[%emt 0:0:14]} Rxd6 {[%emt 0:0:1]} 26. Kf1 {[%emt 0:0:3]} Rc6 {[%emt 0:0:16]} 27. Rxc6 {[%emt 0:0:19]} Kxc6 {[%emt 0:0:0]} 28. Rf4 {[%emt 0:0:17]} f5 {[%emt 0:0:6]} 29. g4 {[%emt 0:0:7]} fxg4 {[%emt 0:0:3]} 30. b4 {[%emt 0:0:17]} Kd6 {[%emt 0:0:15]} 31. Rxg4 {[%emt 0:0:6]
} Rc8 {[%emt 0:0:11]} 32. Rg3 {[%emt 0:0:15]} Ke5 {[%emt 0:0:0]} 33. Rh3 {[%emt 0:0:5]} Kd4 {[%emt 0:0:27]} 34. Rxh7 {[%emt 0:0:23]} Kxd3 {[%emt 0:0:1]} 35. Rd7 {[%emt 0:0:9]} d4 {[%emt 0:0:11]} 36. Rd6 {[%emt 0:0:0]
} g5 {[%emt 0:0:24]} 37. Rxa6 {[%emt 0:0:4]} Kc2 {[%emt 0:0:0]} 38. a4 {[%emt 0:0:22]} d3 {[%emt 0:0:8]} 39. axb5 {[%emt 0:0:4]} d2 {[%emt 0:0:2]
} 0-1

[Event "FIDE World Rapid-ch Open 2018"]
[White "Salgado Lopez, Ivan"]
[Black "Jobava, Baadur"]
[Site "St. Petersburg"]
[Round "5.26"]
[Annotator "RC"]
[Result "1/2-1/2"]
[Date "2018.12.26"]
[WhiteElo "2629"]
[BlackElo "2627"]
[PlyCount "21"]
[TimeControl "900+10"]

1. e4 {[%emt 0:0:0]} e5 {[%emt 0:0:0]} 2. Nf3 {[%emt 0:0:3]} Nf6 {[%emt 0:0:0]
} 3. Nxe5 {[%emt 0:0:5]} d6 {[%emt 0:0:1]} 4. Nf3 {[%emt 0:0:0]} Nxe4 {[%emt 0:0:0]} 5. Qe2 Qe7 6. d3 {[%emt 0:0:16]} Nf6 {[%emt 0:0:0]} 7. Nc3 {[%emt 0:0:7]} Nc6 {[%emt 0:0:1]} 8. Bg5 {[%emt 0:0:10]} Qxe2+ {[%emt 0:0:2]} 9. Bxe2 {[%emt 0:0:3]} Be7 {[%emt 0:0:1]} 10. 0-0-0 {[%emt 0:0:6]} 0-0 {[%emt 0:0:2]} 11. Rhe1 {[%emt 0:0:9]} 1/2-1/2

[Event "FIDE World Rapid-ch Open 2018"]
[White "Cheparinov, Ivan"]
[Black "Antipov, Mikhail Al."]
[Site "St. Petersburg"]
[Round "5.27"]
[Annotator "RC"]
[Result "1/2-1/2"]
[Date "2018.12.26"]
[WhiteElo "2709"]
[BlackElo "2589"]
[PlyCount "92"]
[TimeControl "900+10"]

1. Nf3 {[%emt 0:0:0]} Nf6 {[%emt 0:0:0]} 2. c4 {[%emt 0:0:0]} c6 {[%emt 0:0:0]
} 3. d4 {[%emt 0:0:4]} d5 {[%emt 0:0:0]} 4. g3 {[%emt 0:0:0]} Bf5 {[%emt 0:0:1]} 5. Nc3 {[%emt 0:0:3]} e6 {[%emt 0:0:9]} 6. Nh4 {[%emt 0:0:2]
} Bg4 {[%emt 0:0:27]} 7. h3 {[%emt 0:0:11]} Bh5 {[%emt 0:0:2]
} 8. Qb3 {[%emt 0:0:15]} Qb6 {[%emt 0:0:15]} 9. g4 {[%emt 0:0:35]} Bg6 {[%emt 0:0:4]
} 10. Nxg6 {[%emt 0:0:2]} hxg6 {[%emt 0:0:1]} 11. Bg2 {[%emt 0:0:5]
} Nbd7 {[%emt 0:0:26]} 12. Bf4 {[%emt 0:1:44]} Be7 {[%emt 0:0:0]} 13. c5 {[%emt 0:0:45]} Qa6 {[%emt 0:0:14]} 14. 0-0 {[%emt 0:1:47]} b6 {[%emt 0:0:53]
} 15. cxb6 {[%emt 0:0:1]} axb6 {[%emt 0:0:9]} 16. e4 {[%emt 0:0:13]
} 0-0 {[%emt 0:0:47]} 17. exd5 {[%emt 0:1:28]} Nxd5 {[%emt 0:0:0]} 18. Nxd5 {[%emt 0:0:19]} cxd5 {[%emt 0:0:32]} 19. Rfc1 {[%emt 0:0:0]} Rfc8 {[%emt 0:0:3]} 20. Bf1 {[%emt 0:0:20]} Qa7 {[%emt 0:1:3]} 21. Bb5 {[%emt 0:0:25]} g5 {[%emt 0:0:34]} 22. Be3 {[%emt 0:0:27]} Nf8 {[%emt 0:0:0]} 23. a4 {[%emt 0:0:12]} Ng6 {[%emt 0:0:12]} 24. Rc3 {[%emt 0:0:14]} Nf4 {[%emt 0:3:3]} 25. h4 {[%emt 0:1:16]} g6 {[%emt 0:0:46]} 26. Rac1 {[%emt 0:0:38]
} Rxc3 {[%emt 0:0:10]} 27. Qxc3 {[%emt 0:0:16]} Bd6 {[%emt 0:0:0]} 28. Qd2 {[%emt 0:1:30]} Qe7 {[%emt 0:1:1]} 29. Rc6 {[%emt 0:0:16]} Kg7 {[%emt 0:1:20]} 30. Rxd6 {[%emt 0:2:39]} Qxd6 {[%emt 0:0:1]} 31. hxg5 {[%emt 0:0:2]
} Nh3+ {[%emt 0:0:2]} 32. Kg2 {[%emt 0:0:4]} Rh8 {[%emt 0:0:0]} 33. b4 {[%emt 0:0:41]} f6 {[%emt 0:3:4]} 34. gxf6+ {[%emt 0:0:20]} Kxf6 {[%emt 0:0:1]} 35. a5 {[%emt 0:2:40]} bxa5 {[%emt 0:0:8]} 36. bxa5 {[%emt 0:0:1]
} g5 {[%emt 0:0:11]} 37. a6 {[%emt 0:0:1]} Qa3 {[%emt 0:1:0]
} 38. Bd3 {[%emt 0:0:24]} Qa1 {[%emt 0:0:39]} 39. Bxg5+ {[%emt 0:0:42]} Kf7 {[%emt 0:0:25]} 40. Bf1 {[%emt 0:0:6]} Nxg5 {[%emt 0:0:7]} 41. Qf4+ {[%emt 0:0:21]
} Kg6 {[%emt 0:0:5]} 42. Bd3+ {[%emt 0:0:2]} Ne4 {[%emt 0:0:0]} 43. Bxe4+ {[%emt 0:0:1]} dxe4 {[%emt 0:0:3]} 44. Qxe4+ {[%emt 0:0:2]
} Kf7 {[%emt 0:0:31]} 45. Qf4+ {[%emt 0:0:10]} Kg6 {[%emt 0:0:1]} 46. Qe4+ {[%emt 0:0:1]} Kf7 {[%emt 0:0:2]} 1/2-1/2

[Event "FIDE World Rapid-ch Open 2018"]
[White "Postny, Evgeny"]
[Black "Morozevich, Alexander"]
[Site "St. Petersburg"]
[Round "5.28"]
[Annotator "RC"]
[Result "1/2-1/2"]
[Date "2018.12.26"]
[WhiteElo "2615"]
[BlackElo "2656"]
[PlyCount "97"]
[TimeControl "900+10"]

1. d4 {[%emt 0:0:0]} Nf6 {[%emt 0:0:5]} 2. c4 {[%emt 0:0:0]} c5 {[%emt 0:0:0]} 3. d5 {[%emt 0:0:0]} g6 {[%emt 0:0:1]} 4. Nc3 {[%emt 0:0:0]} Bg7 {[%emt 0:0:2]} 5. e4 {[%emt 0:0:0]} 0-0 {[%emt 0:0:1]} 6. Nf3 {[%emt 0:0:0]} d6 {[%emt 0:0:2]} 7. h3 {[%emt 0:0:7]} e6 {[%emt 0:0:2]} 8. Bd3 {[%emt 0:0:1]
} exd5 {[%emt 0:0:1]} 9. exd5 {[%emt 0:0:2]} Re8+ {[%emt 0:0:0]} 10. Be3 {[%emt 0:0:3]} Rxe3+ {[%emt 0:0:2]} 11. fxe3 {[%emt 0:0:0]} Qe7 {[%emt 0:0:1]} 12. 0-0 {[%emt 0:0:17]} Nbd7 {[%emt 0:0:2]} 13. Qd2 {[%emt 0:1:13]} b6 {[%emt 0:2:45]} 14. Rae1 {[%emt 0:0:32]} Ba6 {[%emt 0:0:10]
} 15. b3 {[%emt 0:0:11]} Ne5 {[%emt 0:1:35]} 16. Nxe5 {[%emt 0:0:0]} Qxe5 {[%emt 0:0:2]} 17. Nd1 {[%emt 0:1:24]} Re8 {[%emt 0:0:47]} 18. Rf3 {[%emt 0:0:48]} Qe7 {[%emt 0:0:36]} 19. Ref1 {[%emt 0:0:13]} Rf8 {[%emt 0:0:1]
} 20. Kh1 {[%emt 0:3:25]} Nd7 {[%emt 0:0:13]} 21. Be2 {[%emt 0:0:0]} Ne5 {[%emt 0:0:47]} 22. R3f2 {[%emt 0:0:3]} Bc8 {[%emt 0:0:16]} 23. e4 {[%emt 0:0:34]} h5 {[%emt 0:0:30]} 24. Nb2 {[%emt 0:0:43]} Nd7 {[%emt 0:0:0]} 25. Bf3 {[%emt 0:1:36]} Bd4 {[%emt 0:0:22]} 26. Re2 {[%emt 0:0:4]} Ne5 {[%emt 0:0:32]} 27. Nd3 {[%emt 0:2:25]} Nxd3 {[%emt 0:0:13]} 28. Qxd3 {[%emt 0:0:2]
} Qh4 {[%emt 0:0:1]} 29. Rd2 {[%emt 0:2:0]} f5 {[%emt 0:0:0]} 30. Rdd1 {[%emt 0:1:15]} Be5 {[%emt 0:0:21]} 31. Be2 {[%emt 0:0:15]} f4 {[%emt 0:0:55]} 32. Qf3 {[%emt 0:0:11]} Kg7 {[%emt 0:0:12]} 33. a3 {[%emt 0:0:0]} Qe7 {[%emt 0:0:41]} 34. b4 {[%emt 0:0:10]} g5 {[%emt 0:0:9]} 35. g4 {[%emt 0:1:15]} hxg4 {[%emt 0:0:38]} 36. hxg4 {[%emt 0:0:1]} Rh8+ {[%emt 0:0:0]} 37. Kg2 {[%emt 0:0:41]} Rh4 {[%emt 0:0:28]} 38. bxc5 {[%emt 0:0:12]} bxc5 {[%emt 0:0:16]} 39. Rh1 {[%emt 0:0:21]} Bxg4 {[%emt 0:0:1]} 40. Qxg4 {[%emt 0:0:1]
} Rxg4+ {[%emt 0:0:1]} 41. Bxg4 {[%emt 0:0:1]} Qe8 {[%emt 0:0:0]} 42. Rb1 {[%emt 0:0:13]} f3+ {[%emt 0:0:9]} 43. Kxf3 {[%emt 0:0:15]} Qa4 {[%emt 0:0:13]} 44. Rb7+ {[%emt 0:0:4]} Kf8 {[%emt 0:0:1]} 45. Rb8+ {[%emt 0:0:5]
} Kg7 {[%emt 0:0:10]} 46. Rb7+ {[%emt 0:0:9]} Kf8 {[%emt 0:0:0]} 47. Rb8+ {[%emt 0:0:30]} Kg7 {[%emt 0:0:8]} 48. Rb7+ {[%emt 0:0:11]} Kf8 {[%emt 0:0:0]} 49. Rb8+ {[%emt 0:0:11]} 1/2-1/2

[Event "FIDE World Rapid-ch Open 2018"]
[White "Amonatov, Farrukh"]
[Black "Frolyanov, Dmitry"]
[Site "St. Petersburg"]
[Round "5.29"]
[Annotator "RC"]
[Result "0-1"]
[Date "2018.12.26"]
[WhiteElo "2614"]
[BlackElo "2517"]
[PlyCount "56"]
[TimeControl "900+10"]

1. e4 {[%emt 0:0:0]} c5 {[%emt 0:0:0]} 2. Nc3 {[%emt 0:0:0]} Nc6 {[%emt 0:0:0]
} 3. Bb5 {[%emt 0:0:1]} Nd4 {[%emt 0:0:1]} 4. Nf3 {[%emt 0:0:0]} e6 {[%emt 0:0:9]} 5. 0-0 {[%emt 0:0:15]} a6 {[%emt 0:0:2]} 6. Bd3 {[%emt 0:0:3]} Nc6 {[%emt 0:0:3]} 7. b3 {[%emt 0:0:8]} d6 {[%emt 0:0:14]
} 8. Bb2 {[%emt 0:0:4]} Nf6 {[%emt 0:0:3]} 9. Re1 {[%emt 0:0:8]} Be7 {[%emt 0:0:4]
} 10. e5 {[%emt 0:0:33]} dxe5 {[%emt 0:0:10]} 11. Nxe5 {[%emt 0:0:2]
} Nxe5 {[%emt 0:0:14]} 12. Rxe5 {[%emt 0:0:3]} Bd7 {[%emt 0:0:0]} 13. Qf3 {[%emt 0:1:21]} Bc6 {[%emt 0:0:15]} 14. Qh3 {[%emt 0:0:2]} Qc7 {[%emt 0:1:25]} 15. Rae1 {[%emt 0:0:9]} 0-0-0 {[%emt 0:0:45]} 16. a4 {[%emt 0:4:39]
} h5 {[%emt 0:0:15]} 17. Ba3 {[%emt 0:6:2]} Bd6 {[%emt 0:0:0]} 18. Rg5 {[%emt 0:0:23]} Ng4 {[%emt 0:0:31]} 19. Bxc5 {[%emt 0:0:47]} Bxh2+ {[%emt 0:0:33]} 20. Kf1 {[%emt 0:0:1]} Bf4 {[%emt 0:2:16]} 21. Rxh5 {[%emt 0:0:13]
} Rxh5 {[%emt 0:0:3]} 22. Qxh5 {[%emt 0:0:1]} Nf6 {[%emt 0:0:0]} 23. Qd1 {[%emt 0:1:19]} Rh8 {[%emt 0:0:43]} 24. Be3 {[%emt 0:0:9]} Qe5 {[%emt 0:0:38]} 25. f3 {[%emt 0:0:16]} Rh1+ {[%emt 0:1:9]} 26. Ke2 {[%emt 0:0:8]
} Rh2 {[%emt 0:0:7]} 27. Rh1 {[%emt 0:1:44]} Bxe3 {[%emt 0:0:0]} 28. dxe3 {[%emt 0:0:8]} Bxf3+ {[%emt 0:2:14]} 0-1

[Event "FIDE World Rapid-ch Open 2018"]
[White "Tsydypov, Zhamsaran"]
[Black "Petrosian, Tigran L."]
[Site "St. Petersburg"]
[Round "5.31"]
[Annotator "ChessBase"]
[Result "0-1"]
[Date "2018.12.26"]
[WhiteElo "2529"]
[BlackElo "2598"]
[PlyCount "50"]
[TimeControl "900+10"]

1. e4 {[%emt 0:0:0]} g6 {[%emt 0:0:0]} 2. d4 {[%emt 0:0:2]} Bg7 {[%emt 0:0:0]} 3. Nf3 {[%emt 0:0:34]} d6 {[%emt 0:0:0]} 4. Bc4 {[%emt 0:0:5]} Nf6 {[%emt 0:0:0]} 5. Qe2 {[%emt 0:0:3]} 0-0 {[%emt 0:0:0]} 6. e5 {[%emt 0:0:0]} dxe5 {[%emt 0:0:3]} 7. dxe5 {[%emt 0:0:2]} Nd5 {[%emt 0:0:3]} 8. h3 {[%emt 0:0:39]} Nb6 {[%emt 0:0:29]} 9. Bb3 {[%emt 0:0:8]} a5 {[%emt 0:0:0]} 10. a3 {[%emt 0:0:6]} a4 {[%emt 0:1:53]} 11. Ba2 {[%emt 0:0:1]} Nc6 {[%emt 0:0:2]} 12. 0-0 {[%emt 0:1:57]} Nd4 {[%emt 0:0:40]} 13. Nxd4 {[%emt 0:0:8]
} Qxd4 {[%emt 0:0:1]} 14. Re1 {[%emt 0:0:18]} Ra5 {[%emt 0:0:0]} 15. e6 {[%emt 0:0:36]} Bxe6 {[%emt 0:1:52]} 16. c3 {[%emt 0:2:1]} Qd6 {[%emt 0:9:34]} 17. Bxe6 {[%emt 0:1:6]} Qxe6 {[%emt 0:0:3]} 18. Qxe6 {[%emt 0:1:22]
} fxe6 {[%emt 0:0:0]} 19. Rxe6 {[%emt 0:0:11]} Rd8 {[%emt 0:0:0]} 20. Nd2 {[%emt 0:0:27]} Bh6 {[%emt 0:2:34]} 21. Nf1 {[%emt 0:5:11]} Rd1 {[%emt 0:0:2]} 22. Bxh6 {[%emt 0:0:3]} Rxa1 {[%emt 0:0:2]} 23. Rxe7 {[%emt 0:0:2]
} Rh5 {[%emt 0:0:11]} 24. Bd2 {[%emt 0:0:53]} Rd5 {[%emt 0:0:0]} 25. Bh6 {[%emt 0:0:16]} Rd7 {[%emt 0:0:18]} 0-1